[Event "Betsys MČR v online bleskovém šachu 2021"]
[Site "Chess.com"]
[Date "2021.04.17"]
[Round "1"]
[White "Rognort"]
[Black "HonzaRubes95"]
[Result "0-1"]
[WhiteElo "1787"]
[BlackElo "2513"]
[TimeControl "180+1"]
[EndTime "9:05:04 PDT"]
[Termination "Uživatel HonzaRubes95 zvítězil po vzdání soupeře"]

1. e4 {[%clk 0:02:45.2]} 1... c5 {[%clk 0:03:00.1]} 2. Nf3 {[%clk 0:02:42.2]}
2... Nc6 {[%clk 0:03:00]} 3. d4 {[%clk 0:02:41]} 3... cxd4 {[%clk 0:03:00.3]} 4.
Nxd4 {[%clk 0:02:41.9]} 4... g6 {[%clk 0:03:00.5]} 5. c4 {[%clk 0:02:40]} 5...
Bg7 {[%clk 0:02:57]} 6. Be3 {[%clk 0:02:39.7]} 6... Nf6 {[%clk 0:02:55.3]} 7.
Nc3 {[%clk 0:02:39.3]} 7... d6 {[%clk 0:02:52.7]} 8. Be2 {[%clk 0:02:33.1]} 8...
Bd7 {[%clk 0:02:52.5]} 9. O-O {[%clk 0:02:32.9]} 9... Nxd4 {[%clk 0:02:52.3]}
10. Bxd4 {[%clk 0:02:29.2]} 10... Bc6 {[%clk 0:02:52.6]} 11. f3 {[%clk
0:02:20.7]} 11... a5 {[%clk 0:02:48.2]} 12. Na4 {[%clk 0:02:12.8]} 12... O-O
{[%clk 0:02:43.7]} 13. Rb1 {[%clk 0:02:06.8]} 13... Nd7 {[%clk 0:02:41.7]} 14.
Bxg7 {[%clk 0:02:03.4]} 14... Kxg7 {[%clk 0:02:41.7]} 15. Nc3 {[%clk 0:02:03.5]}
15... Qb6+ {[%clk 0:02:40.8]} 16. Kh1 {[%clk 0:02:01.9]} 16... Rfc8 {[%clk
0:02:40.8]} 17. Nd5 {[%clk 0:01:56.5]} 17... Bxd5 {[%clk 0:02:40.3]} 18. cxd5
{[%clk 0:01:57.4]} 18... Rc7 {[%clk 0:02:27.6]} 19. f4 {[%clk 0:01:40.7]} 19...
Rac8 {[%clk 0:02:24.1]} 20. Bd3 {[%clk 0:01:40.8]} 20... Qe3 {[%clk 0:02:19.4]}
21. f5 {[%clk 0:01:26.4]} 21... Ne5 {[%clk 0:02:17.9]} 22. Rf3 {[%clk
0:00:39.3]} 22... Nxf3 {[%clk 0:02:14]} 23. gxf3 {[%clk 0:00:40.2]} 23... Rc1
{[%clk 0:02:13.8]} 0-1

[Event "Betsys MČR v online bleskovém šachu 2021"]
[Site "Chess.com"]
[Date "2021.04.17"]
[Round "1"]
[White "MrNikdo"]
[Black "Ondre2836"]
[Result "1-0"]
[WhiteElo "2026"]
[BlackElo "1302"]
[TimeControl "180+1"]
[EndTime "9:05:13 PDT"]
[Termination "Uživatel MrNikdo zvítězil matem"]

1. e4 {[%clk 0:03:00.3]} 1... d5 {[%clk 0:02:57.9]} 2. exd5 {[%clk 0:02:59.9]}
2... Qxd5 {[%clk 0:02:56.6]} 3. Nc3 {[%clk 0:02:59.4]} 3... Qa5 {[%clk
0:02:55.9]} 4. Bc4 {[%clk 0:02:58.7]} 4... Nf6 {[%clk 0:02:54.7]} 5. Qf3 {[%clk
0:02:54.1]} 5... Nc6 {[%clk 0:02:47.4]} 6. Bb5 {[%clk 0:02:39.8]} 6... Bd7
{[%clk 0:02:41.6]} 7. Nge2 {[%clk 0:02:31.3]} 7... a6 {[%clk 0:02:38.6]} 8. Ba4
{[%clk 0:02:25.6]} 8... b5 {[%clk 0:02:37]} 9. Bb3 {[%clk 0:02:17.5]} 9... e6
{[%clk 0:02:36.3]} 10. O-O {[%clk 0:02:15.2]} 10... Bc5 {[%clk 0:02:32.1]} 11.
d4 {[%clk 0:02:09.8]} 11... Bb6 {[%clk 0:02:30.4]} 12. Bg5 {[%clk 0:02:07.9]}
12... Rg8 {[%clk 0:02:08.8]} 13. Bxf6 {[%clk 0:01:55.1]} 13... gxf6 {[%clk
0:02:07.4]} 14. Qxf6 {[%clk 0:01:55.7]} 14... Qb4 {[%clk 0:01:56.5]} 15. d5
{[%clk 0:01:36.9]} 15... exd5 {[%clk 0:01:26.1]} 16. Nxd5 {[%clk 0:01:29.5]}
16... Qc5 {[%clk 0:01:17.4]} 17. Nxb6 {[%clk 0:01:19.1]} 17... cxb6 {[%clk
0:01:16.8]} 18. Bxf7+ {[%clk 0:01:18.3]} 18... Kf8 {[%clk 0:01:12.5]} 19. Be6+
{[%clk 0:01:17.9]} 19... Ke8 {[%clk 0:01:08.6]} 20. Qf7+ {[%clk 0:01:17]} 20...
Kd8 {[%clk 0:01:08.6]} 21. Qxd7# {[%clk 0:01:17.6]} 1-0

[Event "Betsys MČR v online bleskovém šachu 2021"]
[Site "Chess.com"]
[Date "2021.04.17"]
[Round "1"]
[White "tudlenudle"]
[Black "AlenaSouralova"]
[Result "1-0"]
[WhiteElo "1888"]
[BlackElo "913"]
[TimeControl "180+1"]
[EndTime "9:05:23 PDT"]
[Termination "Uživatel tudlenudle zvítězil matem"]

1. e4 {[%clk 0:03:00.1]} 1... e5 {[%clk 0:02:59.6]} 2. Nf3 {[%clk 0:02:56.3]}
2... Nc6 {[%clk 0:02:58.6]} 3. d4 {[%clk 0:02:49.1]} 3... exd4 {[%clk
0:02:53.4]} 4. Nxd4 {[%clk 0:02:50]} 4... Nxd4 {[%clk 0:02:53.4]} 5. Qxd4 {[%clk
0:02:44.5]} 5... Nf6 {[%clk 0:02:40.7]} 6. Nc3 {[%clk 0:02:40.9]} 6... d5 {[%clk
0:02:30.9]} 7. Bg5 {[%clk 0:02:34.2]} 7... Bd6 {[%clk 0:02:18.6]} 8. e5 {[%clk
0:02:26.8]} 8... Bxe5 {[%clk 0:02:13.3]} 9. Qxe5+ {[%clk 0:02:25.6]} 9... Be6
{[%clk 0:02:12]} 10. O-O-O {[%clk 0:02:20.1]} 10... Qe7 {[%clk 0:02:03.5]} 11.
Nxd5 {[%clk 0:02:05.5]} 11... Bxd5 {[%clk 0:01:59.7]} 12. Qxe7+ {[%clk
0:01:54.7]} 12... Kxe7 {[%clk 0:02:00.6]} 13. Rxd5 {[%clk 0:01:54.6]} 13... h6
{[%clk 0:01:49.3]} 14. Bxf6+ {[%clk 0:01:54]} 14... gxf6 {[%clk 0:01:46.6]} 15.
Bc4 {[%clk 0:01:54.4]} 15... Rad8 {[%clk 0:01:42.8]} 16. Re1+ {[%clk 0:01:54.3]}
16... Kf8 {[%clk 0:01:39.3]} 17. Rxd8+ {[%clk 0:01:54.6]} 17... Kg7 {[%clk
0:01:38.8]} 18. Rxh8 {[%clk 0:01:54.3]} 18... Kxh8 {[%clk 0:01:39.7]} 19. Bxf7
{[%clk 0:01:53.6]} 19... Kg7 {[%clk 0:01:38.4]} 20. Re7 {[%clk 0:01:54.1]} 20...
b5 {[%clk 0:01:27.5]} 21. Rxc7 {[%clk 0:01:55]} 21... a5 {[%clk 0:01:26.5]} 22.
Ra7 {[%clk 0:01:55.9]} 22... a4 {[%clk 0:01:26.1]} 23. Be8+ {[%clk 0:01:54.3]}
23... Kf8 {[%clk 0:01:13.1]} 24. Bxb5 {[%clk 0:01:55.2]} 24... h5 {[%clk
0:01:11.8]} 25. Bxa4 {[%clk 0:01:56.1]} 25... f5 {[%clk 0:01:11.1]} 26. b4
{[%clk 0:01:51.6]} 26... f4 {[%clk 0:01:05.3]} 27. b5 {[%clk 0:01:52]} 27... h4
{[%clk 0:01:06]} 28. b6 {[%clk 0:01:50.6]} 28... f3 {[%clk 0:00:55.7]} 29. gxf3
{[%clk 0:01:50.2]} 29... h3 {[%clk 0:00:56.6]} 30. Rd7 {[%clk 0:01:49.8]} 30...
Ke8 {[%clk 0:00:53.8]} 31. b7 {[%clk 0:01:50.7]} 31... Kf8 {[%clk 0:00:48.3]}
32. b8=Q# {[%clk 0:01:51.6]} 1-0

[Event "Betsys MČR v online bleskovém šachu 2021"]
[Site "Chess.com"]
[Date "2021.04.17"]
[Round "1"]
[White "koky_3"]
[Black "tryskomys"]
[Result "0-1"]
[WhiteElo "2047"]
[BlackElo "1425"]
[TimeControl "180+1"]
[EndTime "9:05:28 PDT"]
[Termination "Uživatel tryskomys zvítězil po vzdání soupeře"]

1. e4 {[%clk 0:02:59.7]} 1... e5 {[%clk 0:02:59.1]} 2. f4 {[%clk 0:02:50.2]}
2... d5 {[%clk 0:02:58.1]} 3. exd5 {[%clk 0:02:49.3]} 3... c6 {[%clk 0:02:55.9]}
4. d4 {[%clk 0:02:39.6]} 4... exd4 {[%clk 0:02:53.5]} 5. Nf3 {[%clk 0:02:38.3]}
5... Nf6 {[%clk 0:02:49.9]} 6. dxc6 {[%clk 0:02:32.7]} 6... Nxc6 {[%clk
0:02:48.4]} 7. Bc4 {[%clk 0:02:31.5]} 7... Bc5 {[%clk 0:02:32.1]} 8. O-O {[%clk
0:02:26.1]} 8... O-O {[%clk 0:02:27.7]} 9. Kh1 {[%clk 0:02:25.8]} 9... Ng4
{[%clk 0:02:02.8]} 10. h3 {[%clk 0:02:20.3]} 10... Ne3 {[%clk 0:01:53.7]} 11.
Bxe3 {[%clk 0:02:19.6]} 11... dxe3 {[%clk 0:01:53.7]} 12. Qe2 {[%clk 0:02:19.7]}
12... Qe7 {[%clk 0:01:48.9]} 13. Nc3 {[%clk 0:02:17.6]} 13... Nd4 {[%clk
0:01:40.5]} 14. Nxd4 {[%clk 0:02:16.7]} 14... Bxd4 {[%clk 0:01:40.3]} 15. Nd5
{[%clk 0:02:15.9]} 15... Qc5 {[%clk 0:01:39.5]} 16. c3 {[%clk 0:02:13.5]} 16...
Bf6 {[%clk 0:01:24.9]} 17. Nxf6+ {[%clk 0:02:12]} 17... gxf6 {[%clk 0:01:23.9]}
18. Bb3 {[%clk 0:02:00.8]} 18... Re8 {[%clk 0:01:20]} 19. Rae1 {[%clk
0:01:57.3]} 19... Bd7 {[%clk 0:01:11.5]} 20. Qh5 {[%clk 0:01:54.7]} 20... Qxh5
{[%clk 0:01:09.6]} 21. Rf3 {[%clk 0:01:51.1]} 21... e2 {[%clk 0:01:04.8]} 22.
Bc2 {[%clk 0:01:46.4]} 22... Kf8 {[%clk 0:01:03.2]} 23. Rd3 {[%clk 0:01:42.7]}
23... Bc6 {[%clk 0:01:00.6]} 24. Kh2 {[%clk 0:01:36.7]} 24... Rad8 {[%clk
0:00:59.8]} 25. Rg3 {[%clk 0:01:33.9]} 25... Rd1 {[%clk 0:00:54.5]} 26. Bxd1
{[%clk 0:01:32.7]} 26... exd1=Q {[%clk 0:00:53.7]} 0-1

[Event "Betsys MČR v online bleskovém šachu 2021"]
[Site "Chess.com"]
[Date "2021.04.17"]
[Round "1"]
[White "Lipican"]
[Black "MatyldaCZ"]
[Result "1/2-1/2"]
[WhiteElo "2082"]
[BlackElo "1408"]
[TimeControl "180+1"]
[EndTime "9:05:35 PDT"]
[Termination "Remíza dohodou"]

1. d4 {[%clk 0:03:00.7]} 1... Nf6 {[%clk 0:02:58.9]} 2. Nf3 {[%clk 0:02:59.8]}
2... d6 {[%clk 0:02:57.8]} 3. g3 {[%clk 0:02:59.4]} 3... Nc6 {[%clk 0:02:57]} 4.
Bg2 {[%clk 0:02:58.8]} 4... Bg4 {[%clk 0:02:53.9]} 5. h3 {[%clk 0:02:57.9]} 5...
Bf5 {[%clk 0:02:52.3]} 6. O-O {[%clk 0:02:54.8]} 6... e6 {[%clk 0:02:52.3]} 7.
c4 {[%clk 0:02:51.6]} 7... Be7 {[%clk 0:02:52.3]} 8. Nc3 {[%clk 0:02:50.6]} 8...
O-O {[%clk 0:02:52.2]} 9. Nh4 {[%clk 0:02:50]} 9... Bg6 {[%clk 0:02:50.9]} 10.
Nxg6 {[%clk 0:02:49.8]} 10... fxg6 {[%clk 0:02:50]} 11. e4 {[%clk 0:02:46.6]}
11... Qd7 {[%clk 0:02:46.1]} 12. Be3 {[%clk 0:02:44.4]} 12... Rad8 {[%clk
0:02:43]} 13. f4 {[%clk 0:02:41]} 13... e5 {[%clk 0:02:28.6]} 14. fxe5 {[%clk
0:02:36.8]} 14... dxe5 {[%clk 0:02:28.2]} 15. d5 {[%clk 0:02:36.8]} 15... Na5
{[%clk 0:02:26.2]} 16. b3 {[%clk 0:02:33.6]} 16... b6 {[%clk 0:02:26.4]} 17. Kh2
{[%clk 0:02:32.7]} 17... Nb7 {[%clk 0:02:25.6]} 18. Qd2 {[%clk 0:02:30.4]} 18...
Qd6 {[%clk 0:02:23.7]} 19. Na4 {[%clk 0:02:25.9]} 19... a6 {[%clk 0:02:20.4]}
20. Rac1 {[%clk 0:02:21.8]} 20... Nd7 {[%clk 0:02:11.2]} 21. h4 {[%clk
0:02:17.6]} 21... Rxf1 {[%clk 0:02:06.7]} 22. Rxf1 {[%clk 0:02:16.5]} 22... Rf8
{[%clk 0:02:07.2]} 23. Rxf8+ {[%clk 0:02:13.9]} 23... Bxf8 {[%clk 0:02:07.1]}
24. Bh3 {[%clk 0:02:12.7]} 24... Ndc5 {[%clk 0:02:04.9]} 25. Nc3 {[%clk
0:02:07]} 25... Qe7 {[%clk 0:01:49.7]} 26. b4 {[%clk 0:02:03.2]} 26... Nd7
{[%clk 0:01:46.6]} 27. a3 {[%clk 0:02:02.4]} 27... Nf6 {[%clk 0:01:43.4]} 28.
Be6+ {[%clk 0:01:54.5]} 28... Kh8 {[%clk 0:01:42.3]} 29. Qf2 {[%clk 0:01:46.6]}
29... Nd6 {[%clk 0:01:38.7]} 30. c5 {[%clk 0:01:28.1]} 30... Ndxe4 {[%clk
0:01:35.2]} 31. Nxe4 {[%clk 0:01:27.2]} 31... Nxe4 {[%clk 0:01:35.6]} 32. Qf3
{[%clk 0:01:23.6]} 32... Nf6 {[%clk 0:01:32.2]} 33. c6 {[%clk 0:01:19.9]} 33...
Qd6 {[%clk 0:01:27.5]} 34. Bg5 {[%clk 0:01:14.7]} 34... Be7 {[%clk 0:01:24.4]}
1/2-1/2

[Event "Betsys MČR v online bleskovém šachu 2021"]
[Site "Chess.com"]
[Date "2021.04.17"]
[Round "1"]
[White "trosecnik"]
[Black "Lunaticx"]
[Result "0-1"]
[WhiteElo "1842"]
[BlackElo "3005"]
[TimeControl "180+1"]
[EndTime "9:05:36 PDT"]
[Termination "Uživatel Lunaticx zvítězil po vzdání soupeře"]

1. e4 {[%clk 0:02:30.4]} 1... c5 {[%clk 0:02:59.4]} 2. c3 {[%clk 0:02:30]} 2...
Nf6 {[%clk 0:02:58.4]} 3. e5 {[%clk 0:02:30.1]} 3... Nd5 {[%clk 0:02:58.7]} 4.
d4 {[%clk 0:02:30.6]} 4... cxd4 {[%clk 0:02:56.7]} 5. cxd4 {[%clk 0:02:30.8]}
5... d6 {[%clk 0:02:56]} 6. Nf3 {[%clk 0:02:29.6]} 6... Nc6 {[%clk 0:02:55.4]}
7. Bc4 {[%clk 0:02:29.8]} 7... e6 {[%clk 0:02:53.5]} 8. O-O {[%clk 0:02:27.7]}
8... Be7 {[%clk 0:02:53.2]} 9. Qe2 {[%clk 0:02:24.7]} 9... O-O {[%clk
0:02:51.4]} 10. Rd1 {[%clk 0:02:22.1]} 10... Bd7 {[%clk 0:02:37]} 11. Qe4 {[%clk
0:02:00.6]} 11... Ncb4 {[%clk 0:02:27.4]} 12. a3 {[%clk 0:01:47.4]} 12... Rc8
{[%clk 0:02:25]} 13. Bb3 {[%clk 0:01:44.7]} 13... Nc6 {[%clk 0:02:16.9]} 14. Bc2
{[%clk 0:01:34.3]} 14... g6 {[%clk 0:02:09.5]} 15. Bh6 {[%clk 0:01:33.8]} 15...
Re8 {[%clk 0:02:09]} 16. Nc3 {[%clk 0:01:22.1]} 16... Na5 {[%clk 0:02:02.3]} 17.
Nxd5 {[%clk 0:01:01.4]} 17... exd5 {[%clk 0:02:02]} 18. Qd3 {[%clk 0:00:52.6]}
18... Bf5 {[%clk 0:02:00.3]} 19. Qe3 {[%clk 0:00:09.1]} 19... Rxc2 {[%clk
0:01:57.9]} 20. Rd2 {[%clk 0:00:04.5]} 20... Nc4 {[%clk 0:01:56.9]} 0-1

[Event "Betsys MČR v online bleskovém šachu 2021"]
[Site "Chess.com"]
[Date "2021.04.17"]
[Round "1"]
[White "jsulc"]
[Black "Marcus_Aurelius_CZ"]
[Result "1-0"]
[WhiteElo "2077"]
[BlackElo "1365"]
[TimeControl "180+1"]
[EndTime "9:05:36 PDT"]
[Termination "Uživatel jsulc zvítězil matem"]

1. d4 {[%clk 0:03:00.5]} 1... e5 {[%clk 0:02:59.4]} 2. dxe5 {[%clk 0:02:54]}
2... Nc6 {[%clk 0:02:58.4]} 3. Nf3 {[%clk 0:02:45]} 3... Qe7 {[%clk 0:02:57.5]}
4. Bg5 {[%clk 0:02:38.2]} 4... Qb4+ {[%clk 0:02:50.4]} 5. Nc3 {[%clk 0:02:35.2]}
5... h6 {[%clk 0:02:44.4]} 6. a3 {[%clk 0:02:31.3]} 6... Qxb2 {[%clk 0:02:21.8]}
7. Bd2 {[%clk 0:02:24.5]} 7... d6 {[%clk 0:01:46]} 8. Rb1 {[%clk 0:02:18.2]}
8... Qxa3 {[%clk 0:01:45.3]} 9. Nb5 {[%clk 0:02:14.7]} 9... Qc5 {[%clk
0:01:31.7]} 10. Nxc7+ {[%clk 0:02:11.2]} 10... Kd7 {[%clk 0:01:31]} 11. Nxa8
{[%clk 0:02:11]} 11... Nge7 {[%clk 0:01:23.3]} 12. exd6 {[%clk 0:02:07.6]} 12...
Ng6 {[%clk 0:01:08.1]} 13. e4 {[%clk 0:01:44.3]} 13... Bxd6 {[%clk 0:01:03.8]}
14. Be3 {[%clk 0:01:44.1]} 14... Qa5+ {[%clk 0:01:00.1]} 15. Qd2 {[%clk
0:01:43.4]} 15... Qa2 {[%clk 0:00:30.4]} 16. Rd1 {[%clk 0:01:37.1]} 16... Rd8
{[%clk 0:00:19.1]} 17. Qxd6+ {[%clk 0:01:34.3]} 17... Ke8 {[%clk 0:00:19]} 18.
Nc7# {[%clk 0:01:34.6]} 1-0

[Event "Betsys MČR v online bleskovém šachu 2021"]
[Site "Chess.com"]
[Date "2021.04.17"]
[Round "1"]
[White "Clockwork7orange"]
[Black "CzechMerlin"]
[Result "1-0"]
[WhiteElo "2312"]
[BlackElo "1667"]
[TimeControl "180+1"]
[EndTime "9:05:37 PDT"]
[Termination "Uživatel Clockwork7orange zvítězil po vzdání soupeře"]

1. Nc3 {[%clk 0:02:53.3]} 1... e5 {[%clk 0:02:59.4]} 2. e4 {[%clk 0:02:53]} 2...
Nc6 {[%clk 0:02:57.7]} 3. Nf3 {[%clk 0:02:53.9]} 3... Bb4 {[%clk 0:02:51.2]} 4.
Nd5 {[%clk 0:02:50.5]} 4... Ba5 {[%clk 0:02:48.3]} 5. Bc4 {[%clk 0:02:46.5]}
5... Nf6 {[%clk 0:02:46.4]} 6. Qe2 {[%clk 0:02:46.3]} 6... O-O {[%clk
0:02:45.2]} 7. O-O {[%clk 0:02:45.7]} 7... d6 {[%clk 0:02:41.3]} 8. h3 {[%clk
0:02:43.3]} 8... Be6 {[%clk 0:02:31.1]} 9. Nxf6+ {[%clk 0:02:39.5]} 9... Qxf6
{[%clk 0:02:29.9]} 10. Bxe6 {[%clk 0:02:39.7]} 10... fxe6 {[%clk 0:02:24.5]} 11.
d3 {[%clk 0:02:39.7]} 11... Rad8 {[%clk 0:02:07.1]} 12. Be3 {[%clk 0:02:38.7]}
12... d5 {[%clk 0:01:50]} 13. c3 {[%clk 0:02:36.9]} 13... d4 {[%clk 0:01:36.1]}
14. Bg5 {[%clk 0:02:36.2]} 14... Qg6 {[%clk 0:01:30.2]} 15. Bxd8 {[%clk
0:02:35.9]} 15... Rxd8 {[%clk 0:01:27.6]} 16. c4 {[%clk 0:02:34.5]} 16... Ne7
{[%clk 0:01:01.3]} 17. a3 {[%clk 0:02:31.9]} 17... c5 {[%clk 0:00:53.4]} 18.
Nxe5 {[%clk 0:02:31.3]} 18... Qg5 {[%clk 0:00:50.7]} 19. f4 {[%clk 0:02:30.6]}
19... Qh4 {[%clk 0:00:46.1]} 20. Qg4 {[%clk 0:02:13.6]} 20... Qf6 {[%clk
0:00:36.6]} 21. Qg5 {[%clk 0:02:03.1]} 21... Qxg5 {[%clk 0:00:27.9]} 22. fxg5
{[%clk 0:02:04]} 22... Bd2 {[%clk 0:00:27.7]} 23. Nf3 {[%clk 0:02:02.6]} 23...
Be3+ {[%clk 0:00:27.2]} 24. Kh1 {[%clk 0:02:03.5]} 24... a6 {[%clk 0:00:24]} 25.
b4 {[%clk 0:02:03.4]} 25... b6 {[%clk 0:00:22.8]} 26. bxc5 {[%clk 0:02:03.1]}
26... bxc5 {[%clk 0:00:21.3]} 27. Rab1 {[%clk 0:02:04]} 27... Nc6 {[%clk
0:00:19.7]} 28. Rb6 {[%clk 0:02:01.9]} 1-0

[Event "Betsys MČR v online bleskovém šachu 2021"]
[Site "Chess.com"]
[Date "2021.04.17"]
[Round "1"]
[White "Tah_na_g12"]
[Black "Bartusman"]
[Result "0-1"]
[WhiteElo "1179"]
[BlackElo "1983"]
[TimeControl "180+1"]
[EndTime "9:05:38 PDT"]
[Termination "Uživatel Bartusman zvítězil po vzdání soupeře"]

1. e4 {[%clk 0:03:00.9]} 1... c5 {[%clk 0:02:59.9]} 2. Nf3 {[%clk 0:02:59]} 2...
g6 {[%clk 0:03:00.3]} 3. Bc4 {[%clk 0:02:54.3]} 3... Nc6 {[%clk 0:02:57.7]} 4.
Nc3 {[%clk 0:02:45]} 4... Bg7 {[%clk 0:02:57.1]} 5. O-O {[%clk 0:02:38.2]} 5...
Nf6 {[%clk 0:02:53.3]} 6. e5 {[%clk 0:02:15.6]} 6... Ng4 {[%clk 0:02:51.9]} 7.
h3 {[%clk 0:02:11.2]} 7... Ngxe5 {[%clk 0:02:51.2]} 8. Nxe5 {[%clk 0:02:08.9]}
8... Nxe5 {[%clk 0:02:51]} 9. Re1 {[%clk 0:02:06.7]} 9... Nxc4 {[%clk
0:02:49.8]} 10. d3 {[%clk 0:02:04.6]} 10... Ne5 {[%clk 0:02:29.5]} 11. Bg5
{[%clk 0:01:58]} 11... O-O {[%clk 0:02:27.7]} 12. Bf4 {[%clk 0:01:51.3]} 12...
Nc6 {[%clk 0:02:25.9]} 13. Qf3 {[%clk 0:01:35.7]} 13... d6 {[%clk 0:02:17.1]}
14. Qe3 {[%clk 0:01:21.2]} 14... Nd4 {[%clk 0:02:11]} 15. Qxe7 {[%clk
0:01:17.3]} 15... Nxc2 {[%clk 0:02:08.5]} 16. Rac1 {[%clk 0:01:10.2]} 16... Nxe1
{[%clk 0:02:06.4]} 17. Rxe1 {[%clk 0:01:09.4]} 17... Qxe7 {[%clk 0:01:58.9]} 18.
Rxe7 {[%clk 0:01:10.3]} 18... Be6 {[%clk 0:01:55.3]} 19. a3 {[%clk 0:01:04.8]}
19... Rfd8 {[%clk 0:01:51.3]} 20. Rxb7 {[%clk 0:01:02.5]} 20... Rab8 {[%clk
0:01:50.4]} 21. Rxb8 {[%clk 0:00:47.2]} 21... Rxb8 {[%clk 0:01:48]} 22. Bxd6
{[%clk 0:00:47.7]} 22... Rxb2 {[%clk 0:01:48]} 23. Bxc5 {[%clk 0:00:46.4]} 23...
Bxc3 {[%clk 0:01:46.9]} 24. Bxa7 {[%clk 0:00:45.3]} 24... Ra2 {[%clk 0:01:34.6]}
25. Bc5 {[%clk 0:00:44.7]} 25... Bb2 {[%clk 0:01:34.6]} 26. Bb4 {[%clk
0:00:42.5]} 26... Bxa3 {[%clk 0:01:34]} 27. Bxa3 {[%clk 0:00:42.5]} 27... Rxa3
{[%clk 0:01:34.3]} 0-1

[Event "Betsys MČR v online bleskovém šachu 2021"]
[Site "Chess.com"]
[Date "2021.04.17"]
[Round "1"]
[White "Pekibeast"]
[Black "keram91"]
[Result "1-0"]
[WhiteElo "1861"]
[BlackElo "761"]
[TimeControl "180+1"]
[EndTime "9:05:38 PDT"]
[Termination "Uživatel Pekibeast zvítězil matem"]

1. e4 {[%clk 0:03:00.4]} 1... e5 {[%clk 0:02:59.1]} 2. f4 {[%clk 0:02:54.1]}
2... exf4 {[%clk 0:02:53.5]} 3. Bc4 {[%clk 0:02:54]} 3... Qh4+ {[%clk
0:02:47.1]} 4. Kf1 {[%clk 0:02:52.7]} 4... Bc5 {[%clk 0:02:40.2]} 5. d4 {[%clk
0:02:52.1]} 5... f3 {[%clk 0:02:33.9]} 6. Nxf3 {[%clk 0:02:45.6]} 6... Qe7
{[%clk 0:02:23.3]} 7. dxc5 {[%clk 0:02:44.7]} 7... Qxe4 {[%clk 0:02:20.8]} 8.
Qe2 {[%clk 0:02:44.5]} 8... Qxe2+ {[%clk 0:02:19.4]} 9. Bxe2 {[%clk 0:02:45.4]}
9... Nf6 {[%clk 0:02:18.2]} 10. Nc3 {[%clk 0:02:44.8]} 10... c6 {[%clk
0:02:13.2]} 11. h3 {[%clk 0:02:44]} 11... h5 {[%clk 0:02:11.8]} 12. Bg5 {[%clk
0:02:40.8]} 12... b6 {[%clk 0:02:08.3]} 13. Bxf6 {[%clk 0:02:40.6]} 13... gxf6
{[%clk 0:02:07.2]} 14. Ne4 {[%clk 0:02:40.9]} 14... Ba6 {[%clk 0:02:00.4]} 15.
Bxa6 {[%clk 0:02:38]} 15... Nxa6 {[%clk 0:02:00.2]} 16. cxb6 {[%clk 0:02:38]}
16... axb6 {[%clk 0:01:59.7]} 17. Nxf6+ {[%clk 0:02:38.1]} 17... Kf8 {[%clk
0:01:56]} 18. Nxd7+ {[%clk 0:02:37.8]} 18... Kg8 {[%clk 0:01:52.1]} 19. Re1
{[%clk 0:02:34.3]} 19... Rd8 {[%clk 0:01:50.8]} 20. Nxb6 {[%clk 0:02:33.8]}
20... Nc5 {[%clk 0:01:47.2]} 21. Re7 {[%clk 0:02:30.8]} 21... Rd1+ {[%clk
0:01:43.9]} 22. Re1 {[%clk 0:02:29.1]} 22... Rxe1+ {[%clk 0:01:40.8]} 23. Kxe1
{[%clk 0:02:29]} 23... Ne4 {[%clk 0:01:39.3]} 24. Rf1 {[%clk 0:02:26.3]} 24...
Rh6 {[%clk 0:01:36.9]} 25. Nc4 {[%clk 0:02:25.7]} 25... Ng3 {[%clk 0:01:33.2]}
26. Rf2 {[%clk 0:02:25.5]} 26... Re6+ {[%clk 0:01:32.9]} 27. Kd2 {[%clk
0:02:25.6]} 27... Ne4+ {[%clk 0:01:29.2]} 28. Ke3 {[%clk 0:02:23.6]} 28... Nxf2+
{[%clk 0:01:28.9]} 29. Kxf2 {[%clk 0:02:24.5]} 29... Rf6 {[%clk 0:01:27.9]} 30.
a4 {[%clk 0:02:20.7]} 30... c5 {[%clk 0:01:27.1]} 31. b3 {[%clk 0:02:19.9]}
31... h4 {[%clk 0:01:26]} 32. Ke3 {[%clk 0:02:19.4]} 32... Re6+ {[%clk
0:01:25.6]} 33. Kd3 {[%clk 0:01:57.5]} 33... Rg6 {[%clk 0:01:22.1]} 34. Nxh4
{[%clk 0:01:56.7]} 34... Rd6+ {[%clk 0:01:20]} 35. Nxd6 {[%clk 0:01:56.2]} 35...
Kg7 {[%clk 0:01:17.5]} 36. Kc4 {[%clk 0:01:54.3]} 36... f6 {[%clk 0:01:14.5]}
37. Kxc5 {[%clk 0:01:55.2]} 37... Kh6 {[%clk 0:01:12.5]} 38. Ndf5+ {[%clk
0:01:55.2]} 38... Kg5 {[%clk 0:01:12.2]} 39. a5 {[%clk 0:01:54.8]} 39... Kf4
{[%clk 0:01:09.7]} 40. a6 {[%clk 0:01:54.9]} 40... Ke4 {[%clk 0:01:08.5]} 41. a7
{[%clk 0:01:54.9]} 41... Ke5 {[%clk 0:01:08.2]} 42. a8=Q {[%clk 0:01:54.2]}
42... Kf4 {[%clk 0:01:07.3]} 43. Qf3+ {[%clk 0:01:53.8]} 43... Kg5 {[%clk
0:01:06.2]} 44. Qg3+ {[%clk 0:01:52.8]} 44... Kh5 {[%clk 0:01:06]} 45. Qg4#
{[%clk 0:01:52.9]} 1-0

[Event "Betsys MČR v online bleskovém šachu 2021"]
[Site "Chess.com"]
[Date "2021.04.17"]
[Round "1"]
[White "Bavorak15"]
[Black "Zavurka1975"]
[Result "0-1"]
[WhiteElo "1588"]
[BlackElo "2210"]
[TimeControl "180+1"]
[EndTime "9:05:41 PDT"]
[Termination "Uživatel Zavurka1975 zvítězil po vzdání soupeře"]

1. e4 {[%clk 0:03:00.9]} 1... b6 {[%clk 0:02:59.2]} 2. d4 {[%clk 0:02:59.1]}
2... Bb7 {[%clk 0:02:59.6]} 3. Bd3 {[%clk 0:02:59.5]} 3... Nf6 {[%clk
0:02:59.1]} 4. Nc3 {[%clk 0:02:55.1]} 4... e6 {[%clk 0:02:58.4]} 5. Nf3 {[%clk
0:02:53.9]} 5... Bb4 {[%clk 0:02:56.7]} 6. e5 {[%clk 0:02:41.4]} 6... Ne4 {[%clk
0:02:55.9]} 7. Bd2 {[%clk 0:02:34.7]} 7... Bxc3 {[%clk 0:02:54.8]} 8. bxc3
{[%clk 0:02:24.6]} 8... d5 {[%clk 0:02:53.3]} 9. O-O {[%clk 0:02:16.2]} 9... h6
{[%clk 0:02:50.3]} 10. Re1 {[%clk 0:02:07.7]} 10... c5 {[%clk 0:02:46.7]} 11.
Be3 {[%clk 0:01:52.8]} 11... Nxc3 {[%clk 0:02:39.4]} 12. Qc1 {[%clk 0:01:24.2]}
12... c4 {[%clk 0:01:54.9]} 13. Bf1 {[%clk 0:01:24]} 13... Qe7 {[%clk
0:01:41.9]} 14. a4 {[%clk 0:01:14.5]} 14... Nd7 {[%clk 0:01:33.2]} 15. Qb2
{[%clk 0:01:02.8]} 15... Ne4 {[%clk 0:01:26.4]} 16. a5 {[%clk 0:00:59.9]} 16...
O-O {[%clk 0:01:19.4]} 17. Nd2 {[%clk 0:00:42]} 17... c3 {[%clk 0:01:16.9]} 0-1